[Event "Titled Tuesday Blitz March 08 Late 2022"]
[White "Dubov, Daniil"]
[Black "Martirosyan, Haik M."]
[WhiteFideId "24126055"]
[BlackFideId "13306553"]
[WhiteElo "2791"]
[BlackElo "2735"]
[Result "1/2-1/2"]
[Round "11"]
[TimeControl "180+1"]
[Date "2022.03.08"]
[WhiteClock "0:00:08"]
[BlackClock "0:00:12"]

1. d4 {[%clk 0:03:00]}  Nf6 {[%clk 0:03:00]} 2. Nf3 {[%clk 0:03:01]}  d5 {[%clk 0:02:59]} 3. c4 {[%clk 0:03:01]}  e6 {[%clk 0:02:58]} 4. g3 {[%clk 0:03:01]}  Be7 {[%clk 0:02:55]} 5. Bg2 {[%clk 0:03:01]}  O-O {[%clk 0:02:54]} 6. Qc2 {[%clk 0:03:00]}  c5 {[%clk 0:02:49]} 7. dxc5 {[%clk 0:03:00]}  Nc6 {[%clk 0:02:45]} 8. cxd5 {[%clk 0:02:53]}  Qxd5 {[%clk 0:02:43]} 9. Nc3 {[%clk 0:02:46]}  Qxc5 {[%clk 0:02:43]} 10. O-O {[%clk 0:02:45]}  Rd8 {[%clk 0:02:37]} 11. Be3 {[%clk 0:02:42]}  Qh5 {[%clk 0:02:34]} 12. Rfd1 {[%clk 0:02:41]}  Bd7 {[%clk 0:02:30]} 13. h3 {[%clk 0:02:32]}  Be8 {[%clk 0:02:30]} 14. Nd4 {[%clk 0:02:26]}  Rdc8 {[%clk 0:02:14]} 15. g4 {[%clk 0:02:20]}  Qa5 {[%clk 0:02:06]} 16. Qb3 {[%clk 0:02:04]}  Rab8 {[%clk 0:01:51]} 17. Rac1 {[%clk 0:01:57]}  h6 {[%clk 0:01:46]} 18. a3 {[%clk 0:01:50]}  Qa6 {[%clk 0:01:40]} 19. Qb5 {[%clk 0:01:31]}  Qxb5 {[%clk 0:01:29]} 20. Ndxb5 {[%clk 0:01:20]}  a6 {[%clk 0:01:25]} 21. Na7 {[%clk 0:01:20]}  Rd8 {[%clk 0:01:20]} 22. Nxc6 {[%clk 0:01:01]}  Bxc6 {[%clk 0:01:20]} 23. Rxd8+ {[%clk 0:00:59]}  Rxd8 {[%clk 0:01:12]} 24. Bxc6 {[%clk 0:00:58]}  bxc6 {[%clk 0:01:13]} 25. Na4 {[%clk 0:00:58]}  Nd5 {[%clk 0:01:10]} 26. Rxc6 {[%clk 0:00:47]}  Nxe3 {[%clk 0:01:07]} 27. fxe3 {[%clk 0:00:48]}  a5 {[%clk 0:01:04]} 28. Kf2 {[%clk 0:00:43]}  g6 {[%clk 0:01:01]} 29. Ra6 {[%clk 0:00:42]}  Rd5 {[%clk 0:01:00]} 30. Nc3 {[%clk 0:00:40]}  Rd2 {[%clk 0:01:00]} 31. Rxa5 {[%clk 0:00:30]}  Rxb2 {[%clk 0:01:00]} 32. a4 {[%clk 0:00:30]}  Rb3 {[%clk 0:00:55]} 33. Ra8+ {[%clk 0:00:27]}  Kg7 {[%clk 0:00:55]} 34. Rc8 {[%clk 0:00:28]}  Ra3 {[%clk 0:00:38]} 35. Rc4 {[%clk 0:00:27]}  Bg5 {[%clk 0:00:38]} 36. Kf3 {[%clk 0:00:22]}  f5 {[%clk 0:00:34]} 37. Rc6 {[%clk 0:00:20]}  Bf6 {[%clk 0:00:29]} 38. Nb5 {[%clk 0:00:18]}  Rxa4 {[%clk 0:00:27]} 39. Rxe6 {[%clk 0:00:18]}  fxg4+ {[%clk 0:00:25]} 40. hxg4 {[%clk 0:00:19]}  h5 {[%clk 0:00:24]} 41. gxh5 {[%clk 0:00:18]}  gxh5 {[%clk 0:00:25]} 42. Nd4 {[%clk 0:00:18]}  Bxd4 {[%clk 0:00:23]} 43. Re4 {[%clk 0:00:18]}  Ra3 {[%clk 0:00:18]} 44. Rxd4 {[%clk 0:00:18]}  Kg6 {[%clk 0:00:17]} 45. Rd6+ {[%clk 0:00:17]}  Kg5 {[%clk 0:00:17]} 46. Rd5+ {[%clk 0:00:18]}  Kg6 {[%clk 0:00:17]} 47. Kf4 {[%clk 0:00:18]}  Ra2 {[%clk 0:00:18]} 48. Rg5+ {[%clk 0:00:18]}  Kf6 {[%clk 0:00:16]} 49. Rg2 {[%clk 0:00:17]}  h4 {[%clk 0:00:16]} 50. Rh2 {[%clk 0:00:17]}  Ra4+ {[%clk 0:00:14]} 51. e4 {[%clk 0:00:17]}  Ra2 {[%clk 0:00:15]} 52. Kf3 {[%clk 0:00:17]}  Ra3+ {[%clk 0:00:14]} 53. e3 {[%clk 0:00:16]}  Kg5 {[%clk 0:00:14]} 54. Rg2+ {[%clk 0:00:16]}  Kf6 {[%clk 0:00:14]} 55. Rg4 {[%clk 0:00:16]}  h3 {[%clk 0:00:14]} 56. Rh4 {[%clk 0:00:16]}  Ra1 {[%clk 0:00:13]} 57. Rh6+ {[%clk 0:00:14]}  Ke5 {[%clk 0:00:13]} 58. Rh5+ {[%clk 0:00:15]}  Ke6 {[%clk 0:00:14]} 59. Rxh3 {[%clk 0:00:14]}  Rf1+ {[%clk 0:00:14]} 60. Ke2 {[%clk 0:00:14]}  Ra1 {[%clk 0:00:14]} 61. Rh5 {[%clk 0:00:14]}  Rb1 {[%clk 0:00:14]} 62. Rc5 {[%clk 0:00:13]}  Ra1 {[%clk 0:00:14]} 63. Kd3 {[%clk 0:00:14]}  Rd1+ {[%clk 0:00:14]} 64. Kc2 {[%clk 0:00:12]}  Re1 {[%clk 0:00:13]} 65. Kd2 {[%clk 0:00:12]}  Ra1 {[%clk 0:00:14]} 66. Rb5 {[%clk 0:00:12]}  Rh1 {[%clk 0:00:11]} 67. Kd3 {[%clk 0:00:10]}  Rd1+ {[%clk 0:00:11]} 68. Ke2 {[%clk 0:00:10]}  Ra1 {[%clk 0:00:11]} 69. Rg5 {[%clk 0:00:09]}  Rb1 {[%clk 0:00:11]} 70. Kf2 {[%clk 0:00:09]}  Ra1 {[%clk 0:00:11]} 71. Kf3 {[%clk 0:00:09]}  Rf1+ {[%clk 0:00:10]} 72. Kg4 {[%clk 0:00:09]}  Rg1+ {[%clk 0:00:10]} 73. Kf4 {[%clk 0:00:09]}  Rxg5 {[%clk 0:00:10]} 74. Kxg5 {[%clk 0:00:09]}  Ke5 {[%clk 0:00:11]} 75. Kg4 {[%clk 0:00:09]}  Kxe4 {[%clk 0:00:11]} 76. Kg5 {[%clk 0:00:08]}  Kxe3 {[%clk 0:00:12]} 1/2-1/2


[Site "https://www.chess.com"]

[Event "Titled Tuesday Blitz March 08 Late 2022"]
[White "Elissalt Cardenas, Hector"]
[Black "Romero Ruscalleda, Josep"]
[WhiteFideId "3500632"]
[BlackFideId "2231859"]
[WhiteElo "2159"]
[BlackElo "2334"]
[Result "1-0"]
[Round "11"]
[TimeControl "180+1"]
[Date "2022.03.09"]
[WhiteClock "0:00:52"]
[BlackClock "0:00:21"]

1. d4 {[%clk 0:03:00]}  g6 {[%clk 0:02:57]} 2. e4 {[%clk 0:02:56]}  Bg7 {[%clk 0:02:57]} 3. Nc3 {[%clk 0:02:51]}  d6 {[%clk 0:02:58]} 4. g3 {[%clk 0:02:44]}  a6 {[%clk 0:02:56]} 5. Bg2 {[%clk 0:02:40]}  Nf6 {[%clk 0:02:51]} 6. Nge2 {[%clk 0:02:36]}  O-O {[%clk 0:02:50]} 7. a4 {[%clk 0:02:30]}  Nc6 {[%clk 0:02:44]} 8. h3 {[%clk 0:02:25]}  e5 {[%clk 0:02:43]} 9. Be3 {[%clk 0:02:20]}  Re8 {[%clk 0:02:22]} 10. O-O {[%clk 0:02:16]}  exd4 {[%clk 0:02:09]} 11. Nxd4 {[%clk 0:02:11]}  Bd7 {[%clk 0:02:08]} 12. Kh2 {[%clk 0:02:00]}  Nxd4 {[%clk 0:02:03]} 13. Bxd4 {[%clk 0:01:56]}  Bc6 {[%clk 0:02:03]} 14. Re1 {[%clk 0:01:52]}  Qd7 {[%clk 0:01:58]} 15. Qd2 {[%clk 0:01:43]}  Qe6 {[%clk 0:01:21]} 16. Rad1 {[%clk 0:01:37]}  Rad8 {[%clk 0:01:17]} 17. b3 {[%clk 0:01:31]}  Qc8 {[%clk 0:01:14]} 18. f4 {[%clk 0:01:27]}  Nh5 {[%clk 0:01:02]} 19. Bxg7 {[%clk 0:01:22]}  Nxg7 {[%clk 0:01:02]} 20. g4 {[%clk 0:01:21]}  f5 {[%clk 0:00:56]} 21. exf5 {[%clk 0:01:16]}  Bxg2 {[%clk 0:00:54]} 22. Kxg2 {[%clk 0:01:13]}  gxf5 {[%clk 0:00:54]} 23. Nd5 {[%clk 0:01:06]}  fxg4 {[%clk 0:00:43]} 24. Nf6+ {[%clk 0:01:04]}  Kh8 {[%clk 0:00:39]} 25. Nxe8 {[%clk 0:01:04]}  gxh3+ {[%clk 0:00:39]} 26. Kh2 {[%clk 0:01:04]}  Nxe8 {[%clk 0:00:35]} 27. Qd4+ {[%clk 0:01:02]}  Ng7 {[%clk 0:00:34]} 28. Re7 {[%clk 0:01:01]}  Rg8 {[%clk 0:00:25]} 29. Rg1 {[%clk 0:01:01]}  Qf8 {[%clk 0:00:23]} 30. Rxc7 {[%clk 0:00:54]}  h6 {[%clk 0:00:23]} 31. Rxb7 {[%clk 0:00:53]}  Kh7 {[%clk 0:00:24]} 32. Rgxg7+ {[%clk 0:00:52]}  Rxg7 {[%clk 0:00:23]} 33. Qxg7+ {[%clk 0:00:51]}  Qxg7 {[%clk 0:00:23]} 34. Rxg7+ {[%clk 0:00:51]}  Kxg7 {[%clk 0:00:24]} 35. b4 {[%clk 0:00:51]}  Kf6 {[%clk 0:00:22]} 36. b5 {[%clk 0:00:51]}  axb5 {[%clk 0:00:22]} 37. axb5 {[%clk 0:00:51]}  Ke6 {[%clk 0:00:21]} 38. b6 {[%clk 0:00:51]}  Kd7 {[%clk 0:00:21]} 39. f5 {[%clk 0:00:52]}  d5 {[%clk 0:00:21]} 40. f6 {[%clk 0:00:52]} 1-0


[Site "https://www.chess.com"]

[Event "Titled Tuesday Blitz March 08 Late 2022"]
[White "Erdogdu, Mert"]
[Black "Milanovic, Marko"]
[WhiteFideId "6301495"]
[BlackFideId "980129"]
[WhiteElo "2485"]
[BlackElo "2159"]
[Result "0-1"]
[Round "11"]
[TimeControl "180+1"]
[Date "2022.03.08"]
[WhiteClock "0:00:06"]
[BlackClock "0:00:06"]

1. c4 {[%clk 0:03:00]}  c6 {[%clk 0:02:59]} 2. d4 {[%clk 0:02:59]}  d5 {[%clk 0:02:57]} 3. Nf3 {[%clk 0:02:59]}  Nf6 {[%clk 0:02:56]} 4. Nbd2 {[%clk 0:02:59]}  Bf5 {[%clk 0:02:54]} 5. Nh4 {[%clk 0:02:58]}  Be4 {[%clk 0:02:50]} 6. f3 {[%clk 0:02:57]}  Bg6 {[%clk 0:02:51]} 7. Qb3 {[%clk 0:02:57]}  Qb6 {[%clk 0:02:46]} 8. g4 {[%clk 0:02:44]}  e6 {[%clk 0:02:37]} 9. g5 {[%clk 0:02:42]}  Qxd4 {[%clk 0:02:16]} 10. Nxg6 {[%clk 0:02:38]}  hxg6 {[%clk 0:02:03]} 11. Qxb7 {[%clk 0:02:19]}  Nfd7 {[%clk 0:02:01]} 12. Qxa8 {[%clk 0:02:08]}  Qb6 {[%clk 0:02:00]} 13. a3 {[%clk 0:01:56]}  Be7 {[%clk 0:01:44]} 14. b4 {[%clk 0:01:54]}  O-O {[%clk 0:01:43]} 15. c5 {[%clk 0:01:51]}  Qc7 {[%clk 0:01:41]} 16. Nb3 {[%clk 0:01:42]}  Na6 {[%clk 0:01:38]} 17. Qxf8+ {[%clk 0:01:38]}  Bxf8 {[%clk 0:01:38]} 18. e3 {[%clk 0:01:37]}  Qe5 {[%clk 0:01:32]} 19. Nd4 {[%clk 0:01:25]}  Nc7 {[%clk 0:01:26]} 20. f4 {[%clk 0:01:18]}  Qe4 {[%clk 0:01:21]} 21. Rg1 {[%clk 0:01:19]}  e5 {[%clk 0:01:12]} 22. fxe5 {[%clk 0:01:14]}  Nxe5 {[%clk 0:01:13]} 23. Rg3 {[%clk 0:01:09]}  Ne6 {[%clk 0:01:05]} 24. Nxe6 {[%clk 0:00:47]}  fxe6 {[%clk 0:01:06]} 25. Ra2 {[%clk 0:00:39]}  Be7 {[%clk 0:00:58]} 26. Rf2 {[%clk 0:00:31]}  d4 {[%clk 0:00:43]} 27. Bg2 {[%clk 0:00:16]}  Qb1 {[%clk 0:00:41]} 28. Kd1 {[%clk 0:00:14]}  Nd3 {[%clk 0:00:30]} 29. Rc2 {[%clk 0:00:14]}  Ne1 {[%clk 0:00:16]} 30. Be4 {[%clk 0:00:08]}  Nxc2 {[%clk 0:00:12]} 31. Bxc2 {[%clk 0:00:08]}  Qa1 {[%clk 0:00:12]} 32. exd4 {[%clk 0:00:05]}  Qxd4+ {[%clk 0:00:12]} 33. Ke2 {[%clk 0:00:02]}  Qe5+ {[%clk 0:00:11]} 34. Be3 {[%clk 0:00:01]}  Qc3 {[%clk 0:00:09]} 35. Bd3 {[%clk 0:00:01]}  Qxa3 {[%clk 0:00:08]} 36. Rg4 {[%clk 0:00:02]}  Qb2+ {[%clk 0:00:07]} 37. Kf3 {[%clk 0:00:03]}  Qe5 {[%clk 0:00:07]} 38. Re4 {[%clk 0:00:03]}  Qd5 {[%clk 0:00:06]} 39. Ke2 {[%clk 0:00:03]}  Qa2+ {[%clk 0:00:03]} 40. Kf3 {[%clk 0:00:03]}  Qa1 {[%clk 0:00:03]} 41. Be2 {[%clk 0:00:03]}  e5 {[%clk 0:00:03]} 42. h4 {[%clk 0:00:03]}  Qb2 {[%clk 0:00:03]} 43. Bc4+ {[%clk 0:00:03]}  Kf8 {[%clk 0:00:02]} 44. Be2 {[%clk 0:00:04]}  Qa1 {[%clk 0:00:02]} 45. b5 {[%clk 0:00:04]}  cxb5 {[%clk 0:00:02]} 46. Bxb5 {[%clk 0:00:04]}  Qc3 {[%clk 0:00:02]} 47. Be2 {[%clk 0:00:05]}  Bxc5 {[%clk 0:00:02]} 48. Rxe5 {[%clk 0:00:04]}  Qxe5 {[%clk 0:00:03]} 49. Bf4 {[%clk 0:00:05]}  Qd5+ {[%clk 0:00:03]} 50. Kg4 {[%clk 0:00:06]}  Bd6 {[%clk 0:00:03]} 51. Be3 {[%clk 0:00:05]}  Qe4+ {[%clk 0:00:03]} 52. Kh3 {[%clk 0:00:05]}  Qxe3+ {[%clk 0:00:03]} 53. Kg4 {[%clk 0:00:06]}  Qxe2+ {[%clk 0:00:04]} 54. Kh3 {[%clk 0:00:06]}  a5 {[%clk 0:00:05]} 55. h5 {[%clk 0:00:06]}  Qf3+ {[%clk 0:00:05]} 56. Kh4 {[%clk 0:00:06]}  Qg3# {[%clk 0:00:06]} 0-1


[Site "https://www.chess.com"]

[Event "Titled Tuesday Blitz March 08 Late 2022"]
[White "Hartikainen, Jarmo"]
[Black "Warakomska, Anna"]
[WhiteFideId "503134"]
[BlackFideId "1130790"]
[WhiteElo "2091"]
[BlackElo "2062"]
[Result "0-1"]
[Round "11"]
[TimeControl "180+1"]
[Date "2022.03.09"]
[WhiteClock "0:00:02"]
[BlackClock "0:00:13"]

1. e4 {[%clk 0:03:00]}  c5 {[%clk 0:02:59]} 2. Nf3 {[%clk 0:02:59]}  e6 {[%clk 0:02:58]} 3. d4 {[%clk 0:02:59]}  cxd4 {[%clk 0:02:58]} 4. Nxd4 {[%clk 0:03:00]}  Nc6 {[%clk 0:02:57]} 5. Nc3 {[%clk 0:03:00]}  Qc7 {[%clk 0:02:57]} 6. g3 {[%clk 0:02:57]}  a6 {[%clk 0:02:54]} 7. Bg2 {[%clk 0:02:57]}  Nf6 {[%clk 0:02:46]} 8. Be3 {[%clk 0:02:54]}  Ne5 {[%clk 0:02:32]} 9. O-O {[%clk 0:02:46]}  Nc4 {[%clk 0:02:25]} 10. Bc1 {[%clk 0:02:44]}  Be7 {[%clk 0:02:06]} 11. Nde2 {[%clk 0:02:41]}  O-O {[%clk 0:02:03]} 12. a4 {[%clk 0:02:41]}  d6 {[%clk 0:01:59]} 13. b3 {[%clk 0:02:40]}  Ne5 {[%clk 0:01:54]} 14. h3 {[%clk 0:02:37]}  Bd7 {[%clk 0:01:41]} 15. a5 {[%clk 0:02:32]}  Nc6 {[%clk 0:01:40]} 16. Be3 {[%clk 0:02:06]}  Nxa5 {[%clk 0:01:37]} 17. g4 {[%clk 0:01:50]}  Rac8 {[%clk 0:01:15]} 18. Qe1 {[%clk 0:01:47]}  Nc6 {[%clk 0:01:10]} 19. f4 {[%clk 0:01:39]}  Nb4 {[%clk 0:01:07]} 20. Rc1 {[%clk 0:01:19]}  Bc6 {[%clk 0:01:02]} 21. Qf2 {[%clk 0:01:14]}  b5 {[%clk 0:00:58]} 22. Bf3 {[%clk 0:00:59]}  Qb7 {[%clk 0:00:57]} 23. Qg2 {[%clk 0:00:58]}  Nd7 {[%clk 0:00:54]} 24. Nd4 {[%clk 0:00:37]}  e5 {[%clk 0:00:33]} 25. Nf5 {[%clk 0:00:36]}  Nc5 {[%clk 0:00:29]} 26. Bxc5 {[%clk 0:00:30]}  dxc5 {[%clk 0:00:28]} 27. fxe5 {[%clk 0:00:30]}  Bg5 {[%clk 0:00:27]} 28. Rcd1 {[%clk 0:00:28]}  Rcd8 {[%clk 0:00:24]} 29. h4 {[%clk 0:00:28]}  Bf4 {[%clk 0:00:20]} 30. Nd6 {[%clk 0:00:23]}  Qa7 {[%clk 0:00:20]} 31. Nd5 {[%clk 0:00:20]}  Bxe5 {[%clk 0:00:19]} 32. Nf5 {[%clk 0:00:20]}  Nxd5 {[%clk 0:00:15]} 33. exd5 {[%clk 0:00:20]}  Bd7 {[%clk 0:00:15]} 34. Be4 {[%clk 0:00:18]}  Rfe8 {[%clk 0:00:14]} 35. Rfe1 {[%clk 0:00:18]}  g6 {[%clk 0:00:14]} 36. Nh6+ {[%clk 0:00:17]}  Kf8 {[%clk 0:00:13]} 37. Qf3 {[%clk 0:00:17]}  Bc8 {[%clk 0:00:13]} 38. Rf1 {[%clk 0:00:17]}  Rd7 {[%clk 0:00:11]} 39. g5 {[%clk 0:00:15]}  Bg7 {[%clk 0:00:12]} 40. Ng4 {[%clk 0:00:15]}  Rde7 {[%clk 0:00:11]} 41. Bd3 {[%clk 0:00:15]}  Bxg4 {[%clk 0:00:10]} 42. Qxg4 {[%clk 0:00:15]}  Qd7 {[%clk 0:00:10]} 43. Qxd7 {[%clk 0:00:14]}  Rxd7 {[%clk 0:00:11]} 44. c4 {[%clk 0:00:11]}  Bd4+ {[%clk 0:00:11]} 45. Kh1 {[%clk 0:00:10]}  b4 {[%clk 0:00:11]} 46. Rfe1 {[%clk 0:00:07]}  Ree7 {[%clk 0:00:11]} 47. Rxe7 {[%clk 0:00:07]}  Rxe7 {[%clk 0:00:12]} 48. Rd2 {[%clk 0:00:07]}  Re3 {[%clk 0:00:12]} 49. Kg2 {[%clk 0:00:06]}  Ke7 {[%clk 0:00:11]} 50. Kh2 {[%clk 0:00:05]}  Kd6 {[%clk 0:00:11]} 51. Kg2 {[%clk 0:00:06]}  Ke5 {[%clk 0:00:11]} 52. Rd1 {[%clk 0:00:06]}  a5 {[%clk 0:00:11]} 53. Rd2 {[%clk 0:00:06]}  a4 {[%clk 0:00:11]} 54. bxa4 {[%clk 0:00:03]}  b3 {[%clk 0:00:12]} 55. a5 {[%clk 0:00:03]}  b2 {[%clk 0:00:12]} 56. a6 {[%clk 0:00:03]}  Rxd3 {[%clk 0:00:13]} 57. Rxb2 {[%clk 0:00:02]}  Bxb2 {[%clk 0:00:12]} 58. a7 {[%clk 0:00:02]}  Ra3 {[%clk 0:00:13]} 0-1


[Site "https://www.chess.com"]

[Event "Titled Tuesday Blitz March 08 Late 2022"]
[White "Kaganskiy, Gleb"]
[Black "Miszler, Levente"]
[WhiteFideId "4132025"]
[BlackFideId "763276"]
[WhiteElo "2165"]
[BlackElo "1966"]
[Result "0-1"]
[Round "11"]
[TimeControl "180+1"]
[Date "2022.03.09"]
[WhiteClock "0:00:05"]
[BlackClock "0:00:18"]

1. e4 {[%clk 0:02:54]}  e6 {[%clk 0:02:56]} 2. d4 {[%clk 0:02:53]}  d5 {[%clk 0:02:57]} 3. Nd2 {[%clk 0:02:52]}  e5 {[%clk 0:02:57]} 4. exd5 {[%clk 0:02:44]}  Qxd5 {[%clk 0:02:55]} 5. dxe5 {[%clk 0:02:42]}  Qxe5+ {[%clk 0:02:56]} 6. Be2 {[%clk 0:02:41]}  Bc5 {[%clk 0:02:48]} 7. Ngf3 {[%clk 0:02:35]}  Qe7 {[%clk 0:02:46]} 8. O-O {[%clk 0:02:33]}  Nf6 {[%clk 0:02:46]} 9. Bb5+ {[%clk 0:02:19]}  c6 {[%clk 0:02:43]} 10. Re1 {[%clk 0:02:18]}  Be6 {[%clk 0:02:43]} 11. Bc4 {[%clk 0:02:16]}  O-O {[%clk 0:02:42]} 12. Bxe6 {[%clk 0:02:15]}  fxe6 {[%clk 0:02:43]} 13. Ne4 {[%clk 0:02:07]}  Nxe4 {[%clk 0:02:40]} 14. Rxe4 {[%clk 0:02:08]}  Nd7 {[%clk 0:02:40]} 15. Qe2 {[%clk 0:02:06]}  e5 {[%clk 0:02:31]} 16. Be3 {[%clk 0:01:53]}  Bxe3 {[%clk 0:02:30]} 17. Qxe3 {[%clk 0:01:50]}  Rf5 {[%clk 0:02:30]} 18. Re1 {[%clk 0:01:47]}  Raf8 {[%clk 0:02:30]} 19. Qb3+ {[%clk 0:01:40]}  Kh8 {[%clk 0:02:27]} 20. Qxb7 {[%clk 0:01:39]}  Qd6 {[%clk 0:02:10]} 21. Qxa7 {[%clk 0:01:27]}  h6 {[%clk 0:01:47]} 22. Qe3 {[%clk 0:01:11]}  Nf6 {[%clk 0:01:36]} 23. Rc4 {[%clk 0:00:54]}  e4 {[%clk 0:01:28]} 24. Nh4 {[%clk 0:00:49]}  Rg5 {[%clk 0:01:22]} 25. g3 {[%clk 0:00:40]}  Ng4 {[%clk 0:01:18]} 26. Qxe4 {[%clk 0:00:30]}  Nxf2 {[%clk 0:01:16]} 27. Qe7 {[%clk 0:00:18]}  Rxg3+ {[%clk 0:01:12]} 28. Ng2 {[%clk 0:00:16]}  Rxg2+ {[%clk 0:01:02]} 29. Kxg2 {[%clk 0:00:15]}  Qg6+ {[%clk 0:01:00]} 30. Kf1 {[%clk 0:00:11]}  Rf7 {[%clk 0:00:46]} 31. Qe8+ {[%clk 0:00:10]}  Kh7 {[%clk 0:00:46]} 32. Ke2 {[%clk 0:00:08]}  Qh5+ {[%clk 0:00:27]} 33. Kd2 {[%clk 0:00:06]}  Qd5+ {[%clk 0:00:25]} 34. Kc3 {[%clk 0:00:05]}  Rf3+ {[%clk 0:00:19]} 35. Kb4 {[%clk 0:00:05]}  Qb5# {[%clk 0:00:18]} 0-1


[Site "https://www.chess.com"]

[Event "Titled Tuesday Blitz March 08 Late 2022"]
[White "Kim, Sergey"]
[Black "Todorovic, Bojan"]
[WhiteFideId "13700570"]
[BlackFideId "917087"]
[WhiteElo "2538"]
[BlackElo "2266"]
[Result "1-0"]
[Round "11"]
[TimeControl "180+1"]
[Date "2022.03.09"]
[WhiteClock "0:01:58"]
[BlackClock "0:00:31"]

1. d4 {[%clk 0:03:00]}  Nf6 {[%clk 0:02:58]} 2. c4 {[%clk 0:03:01]}  g6 {[%clk 0:02:56]} 3. Nc3 {[%clk 0:03:01]}  Bg7 {[%clk 0:02:55]} 4. e4 {[%clk 0:03:00]}  O-O {[%clk 0:02:54]} 5. Nge2 {[%clk 0:03:00]}  d6 {[%clk 0:02:52]} 6. Ng3 {[%clk 0:03:00]}  e5 {[%clk 0:02:52]} 7. d5 {[%clk 0:03:00]}  h5 {[%clk 0:02:48]} 8. Bg5 {[%clk 0:02:57]}  Qe8 {[%clk 0:02:47]} 9. Qd2 {[%clk 0:02:57]}  Nh7 {[%clk 0:02:44]} 10. Be3 {[%clk 0:02:54]}  h4 {[%clk 0:02:41]} 11. Nge2 {[%clk 0:02:55]}  f5 {[%clk 0:02:40]} 12. f3 {[%clk 0:02:55]}  Qe7 {[%clk 0:02:35]} 13. O-O-O {[%clk 0:02:50]}  Bf6 {[%clk 0:02:35]} 14. g3 {[%clk 0:02:48]}  Bg5 {[%clk 0:02:16]} 15. f4 {[%clk 0:02:45]}  exf4 {[%clk 0:02:15]} 16. Nxf4 {[%clk 0:02:42]}  Bxf4 {[%clk 0:02:04]} 17. gxf4 {[%clk 0:02:39]}  fxe4 {[%clk 0:02:02]} 18. Rg1 {[%clk 0:02:36]}  Bf5 {[%clk 0:02:01]} 19. Nb5 {[%clk 0:02:33]}  Na6 {[%clk 0:01:08]} 20. Nd4 {[%clk 0:02:32]}  Kf7 {[%clk 0:00:57]} 21. Nxf5 {[%clk 0:02:27]}  gxf5 {[%clk 0:00:56]} 22. Qe2 {[%clk 0:02:25]}  Nf6 {[%clk 0:00:54]} 23. Rg5 {[%clk 0:02:24]}  Qd7 {[%clk 0:00:48]} 24. Bh3 {[%clk 0:02:20]}  Rg8 {[%clk 0:00:37]} 25. Rxf5 {[%clk 0:02:13]}  Qa4 {[%clk 0:00:36]} 26. Bd4 {[%clk 0:02:06]}  Rg6 {[%clk 0:00:32]} 27. Bxf6 {[%clk 0:01:57]}  Rxf6 {[%clk 0:00:31]} 28. Qh5+ {[%clk 0:01:58]} 1-0


[Site "https://www.chess.com"]

[Event "Titled Tuesday Blitz March 08 Late 2022"]
[White "Kopczynski, Michal"]
[Black "Nikologorsky, Matfei"]
[WhiteFideId "1124200"]
[BlackFideId "24102474"]
[WhiteElo "2235"]
[BlackElo "2231"]
[Result "0-1"]
[Round "11"]
[TimeControl "180+1"]
[Date "2022.03.08"]
[WhiteClock "0:00:15"]
[BlackClock "0:00:11"]

1. e4 {[%clk 0:03:00]}  c5 {[%clk 0:02:59]} 2. d4 {[%clk 0:03:00]}  cxd4 {[%clk 0:02:59]} 3. c3 {[%clk 0:03:01]}  dxc3 {[%clk 0:02:59]} 4. Nxc3 {[%clk 0:03:02]}  Nc6 {[%clk 0:03:00]} 5. f4 {[%clk 0:03:02]}  d6 {[%clk 0:02:55]} 6. Nf3 {[%clk 0:03:02]}  e6 {[%clk 0:02:53]} 7. Bd3 {[%clk 0:03:02]}  Be7 {[%clk 0:02:48]} 8. O-O {[%clk 0:03:02]}  Nf6 {[%clk 0:02:41]} 9. Qe1 {[%clk 0:03:02]}  e5 {[%clk 0:02:34]} 10. f5 {[%clk 0:03:01]}  O-O {[%clk 0:02:32]} 11. Kh1 {[%clk 0:03:00]}  d5 {[%clk 0:02:18]} 12. exd5 {[%clk 0:02:59]}  Nxd5 {[%clk 0:02:18]} 13. Nxd5 {[%clk 0:02:58]}  Qxd5 {[%clk 0:02:18]} 14. Be4 {[%clk 0:02:56]}  Qb5 {[%clk 0:02:06]} 15. Be3 {[%clk 0:02:48]}  Bf6 {[%clk 0:01:56]} 16. Qg3 {[%clk 0:02:35]}  Nd4 {[%clk 0:01:50]} 17. Bg5 {[%clk 0:02:01]}  Bxg5 {[%clk 0:01:36]} 18. Nxg5 {[%clk 0:02:00]}  f6 {[%clk 0:01:27]} 19. a4 {[%clk 0:01:59]}  Qa5 {[%clk 0:01:08]} 20. b4 {[%clk 0:01:51]}  Qd8 {[%clk 0:01:08]} 21. Nf3 {[%clk 0:01:32]}  Nxf5 {[%clk 0:01:06]} 22. Qf2 {[%clk 0:01:27]}  Nh6 {[%clk 0:00:59]} 23. Rad1 {[%clk 0:01:23]}  Qe7 {[%clk 0:00:59]} 24. Qh4 {[%clk 0:01:17]}  Bf5 {[%clk 0:00:54]} 25. Bd5+ {[%clk 0:01:04]}  Be6 {[%clk 0:00:53]} 26. Be4 {[%clk 0:01:02]}  Rad8 {[%clk 0:00:51]} 27. h3 {[%clk 0:01:01]}  b6 {[%clk 0:00:42]} 28. Nxe5 {[%clk 0:00:58]}  Rxd1 {[%clk 0:00:37]} 29. Rxd1 {[%clk 0:00:56]}  Rd8 {[%clk 0:00:23]} 30. Rxd8+ {[%clk 0:00:42]}  Qxd8 {[%clk 0:00:24]} 31. Nc6 {[%clk 0:00:30]}  Qd1+ {[%clk 0:00:24]} 32. Kh2 {[%clk 0:00:30]}  Qd6+ {[%clk 0:00:25]} 33. Kh1 {[%clk 0:00:29]}  a6 {[%clk 0:00:19]} 34. Qf2 {[%clk 0:00:24]}  Nf5 {[%clk 0:00:17]} 35. g4 {[%clk 0:00:20]}  Ng3+ {[%clk 0:00:16]} 36. Kg2 {[%clk 0:00:20]}  Nxe4 {[%clk 0:00:17]} 37. Qxb6 {[%clk 0:00:19]}  Bd5 {[%clk 0:00:17]} 38. Qd8+ {[%clk 0:00:14]}  Qxd8 {[%clk 0:00:17]} 39. Nxd8 {[%clk 0:00:15]}  Kf8 {[%clk 0:00:16]} 40. Kf1 {[%clk 0:00:13]}  Ke7 {[%clk 0:00:16]} 41. Ke2 {[%clk 0:00:06]}  Kxd8 {[%clk 0:00:16]} 42. Ke3 {[%clk 0:00:07]}  Bb7 {[%clk 0:00:15]} 43. b5 {[%clk 0:00:06]}  axb5 {[%clk 0:00:15]} 44. axb5 {[%clk 0:00:07]}  Ke7 {[%clk 0:00:16]} 45. Kf4 {[%clk 0:00:07]}  Ke6 {[%clk 0:00:16]} 46. h4 {[%clk 0:00:07]}  g5+ {[%clk 0:00:15]} 47. hxg5 {[%clk 0:00:06]}  fxg5+ {[%clk 0:00:16]} 48. Kf3 {[%clk 0:00:07]}  Nf6+ {[%clk 0:00:17]} 49. Kg3 {[%clk 0:00:08]}  Ke5 {[%clk 0:00:17]} 50. Kh3 {[%clk 0:00:08]}  Ne4 {[%clk 0:00:16]} 51. b6 {[%clk 0:00:08]}  Kf4 {[%clk 0:00:17]} 52. Kh2 {[%clk 0:00:08]}  Kxg4 {[%clk 0:00:17]} 53. Kg1 {[%clk 0:00:09]}  Kg3 {[%clk 0:00:17]} 54. Kh1 {[%clk 0:00:09]}  h5 {[%clk 0:00:18]} 55. Kg1 {[%clk 0:00:09]}  h4 {[%clk 0:00:18]} 56. Kf1 {[%clk 0:00:10]}  h3 {[%clk 0:00:18]} 57. Ke2 {[%clk 0:00:10]}  h2 {[%clk 0:00:19]} 58. Ke3 {[%clk 0:00:11]}  h1=Q {[%clk 0:00:19]} 59. Kd4 {[%clk 0:00:12]}  Qb1 {[%clk 0:00:19]} 60. Ke5 {[%clk 0:00:13]}  Qxb6 {[%clk 0:00:17]} 61. Kf5 {[%clk 0:00:14]}  Bc8+ {[%clk 0:00:15]} 62. Ke5 {[%clk 0:00:14]}  Qe6+ {[%clk 0:00:15]} 63. Kd4 {[%clk 0:00:14]}  Nd6 {[%clk 0:00:16]} 64. Kc5 {[%clk 0:00:14]}  Nf5 {[%clk 0:00:15]} 65. Kb4 {[%clk 0:00:14]}  Qc6 {[%clk 0:00:15]} 66. Kb3 {[%clk 0:00:14]}  Be6+ {[%clk 0:00:15]} 67. Kb4 {[%clk 0:00:14]}  Qc4+ {[%clk 0:00:15]} 68. Ka5 {[%clk 0:00:14]}  Qb3 {[%clk 0:00:15]} 69. Ka6 {[%clk 0:00:14]}  Bd5 {[%clk 0:00:12]} 70. Ka7 {[%clk 0:00:15]}  Qb7# {[%clk 0:00:11]} 0-1


[Site "https://www.chess.com"]